bitfinex/quotes_SOLUSD_20241222
["timestamp","ask_amount","ask_price","bid_price","bid_amount"]
[1734843334299,0.10121446,180.64,180.63,30.22303392]
[1734843334494,0.10121446,180.64,180.62,30.22303392]
[1734843334693,0.10121446,180.64,180.63,0.73017221]
[1734843335811,0.10121446,180.64,180.63,30.95320613]
[1734843336309,0.10121446,180.64,180.63,53.99991792]
[1734843337207,0.10121446,180.64,180.63,54.72969699]
[1734843337893,0.10121446,180.64,180.63,85.07822091]
[1734843338105,0.10121446,180.64,180.63,91.21982091]
[1734843338407,0.10121446,180.64,180.63,36.36463392]
[1734843338606,0.10121446,180.64,180.63,30.22303392]
[1734843339713,0.10121446,180.64,180.63,53.99991792]
[1734843342208,0.10121446,180.64,180.63,84.34844184]
[1734843342412,0.10121446,180.64,180.63,85.07793764]
[1734843343222,0.10121446,180.64,180.63,54.72941372]
[1734843343434,0.10121446,180.64,180.63,30.22303392]
[1734843344525,0.10121446,180.64,180.62,30.22303392]
[1734843344822,0.10121446,180.64,180.63,0.73030534]
[1734843345022,0.10121446,180.64,180.59,0.73078564]
[1734843345222,0.10121446,180.64,180.56,0.73096295]
[1734843346225,0.10121446,180.64,180.57,0.73123712]
[1734843347235,0.10121446,180.64,180.58,0.73106611]
[1734843347527,0.10121446,180.64,180.55,0.73113532]
[1734843347706,10.04374361,180.63,180.55,0.73113532]
[1734843347915,10.04374361,180.63,180.52,0.73156447]
[1734843348302,10.04374361,180.63,180.49,0.73183461]
[1734843348503,23.776884,180.62,180.49,0.73183461]
[1734843348830,20.0,180.59,180.49,0.73183461]
[1734843349532,20.0,180.6,180.49,30.95486853]
[1734843352131,22.7686,180.6,180.49,0.73183461]
[1734843352318,1.5728,180.58,180.44,30.95483271]
[1734843352521,1.03858102,180.57,180.44,30.95483271]
[1734843352909,1.03858102,180.57,180.44,0.73179879]
[1734843353114,6.1471,180.56,180.44,0.73179879]
[1734843353334,1.03868341,180.55,180.44,0.73179879]
[1734843353525,1.03868341,180.55,180.45,0.73247076]
[1734843354129,2.7694,180.54,180.45,0.73247076]
[1734843354309,0.11580598,180.46,180.45,0.73247076]
[1734843354509,0.11580598,180.46,180.42,30.22303392]
[1734843354510,0.11580598,180.46,180.43,0.73250368]
[1734843355516,0.11580598,180.46,180.41,0.73294454]
[1734843356430,0.11580598,180.46,180.42,30.22303392]
[1734843356637,0.11580598,180.46,180.43,0.73252455]
[1734843359012,0.11580598,180.46,180.42,0.73257607]
[1734843359212,0.11580598,180.46,180.39,0.73307489]
[1734843360146,0.11580598,180.46,180.4,0.73320936]
[1734843360905,0.11580598,180.46,180.37,0.73320328]
[1734843361125,0.11580598,180.46,180.37,30.9562372]
[1734843363931,0.11580598,180.46,180.42,30.22303392]
[1734843364138,0.11580598,180.46,180.44,30.22303392]
[1734843364322,0.11580598,180.46,180.45,0.73249082]
[1734843366623,0.11580598,180.46,180.45,30.95552474]
[1734843367049,0.11580598,180.46,180.45,54.73240874]
[1734843367725,0.11580598,180.46,180.45,54.85789874]
[1734843368036,0.11580598,180.46,180.45,85.08093266]
[1734843368347,6.44e-06,180.47,180.46,37.755774]
[1734843368641,6.44e-06,180.47,180.46,67.97880792]
[1734843369420,0.12116199,180.48,180.46,67.97880792]
[1734843369635,0.12116199,180.48,180.47,54.85642468]
[1734843370526,0.12116199,180.48,180.47,54.73093468]
[1734843370726,0.12116199,180.48,180.47,30.95405068]
[1734843372445,0.12116199,180.48,180.47,54.73093468]
[1734843373458,0.12116199,180.48,180.47,30.95405068]
[1734843373824,0.12116199,180.48,180.47,0.73101676]
[1734843374040,0.12116199,180.48,180.46,0.73224595]
[1734843374349,0.22498071,180.48,180.46,0.73224595]
[1734843374649,0.22498071,180.48,180.46,30.95527987]
[1734843374829,0.10381872,180.48,180.46,30.95527987]
[1734843375030,0.10381872,180.48,180.47,30.22303392]
[1734843375229,0.10381872,180.48,180.47,30.95497736]
[1734843375946,0.10381872,180.48,180.47,54.73186136]
[1734843376161,0.10381872,180.48,180.47,54.85735136]
[1734843378552,0.10381872,180.48,180.47,30.95497736]
[1734843379251,0.10381872,180.48,180.47,0.73194344]
[1734843379439,0.10381872,180.48,180.46,0.7322762]
[1734843380332,0.10381872,180.48,180.47,0.73240847]
[1734843380531,0.10381872,180.48,180.44,0.73241049]
[1734843380953,0.10381872,180.48,180.39,30.95580532]
[1734843381161,0.10381872,180.48,180.39,0.7327714]
[1734843381652,0.10381872,180.48,180.39,30.95580532]
[1734843382361,0.10381872,180.48,180.39,0.7327714]
[1734843382853,2.7705,180.47,180.39,0.7327714]
[1734843383155,1.03905883,180.46,180.37,0.7332216]
[1734843383361,22.7705,180.47,180.37,0.7332216]
[1734843383854,7.7854,180.45,180.37,0.7332216]
[1734843384057,1.03926518,180.44,180.35,0.73334314]
[1734843384434,7.7854,180.45,180.35,0.73334314]
[1734843384653,1.03920326,180.44,180.35,0.73334314]
[1734843384857,11.59553461,180.45,180.35,0.73334314]
[1734843386156,10.5563,180.45,180.35,30.95637706]
[1734843387458,10.5563,180.45,180.35,0.73334314]
[1734843387842,10.5563,180.45,180.35,30.95637706]
[1734843388060,10.5563,180.45,180.35,0.73334314]
[1734843388461,10.5563,180.45,180.35,30.95637706]
[1734843390434,10.5563,180.45,180.35,0.73334314]
[1734843390636,1.5749,180.45,180.39,30.22303392]
[1734843390842,1.5749,180.45,180.4,0.73291382]
[1734843392590,0.10381872,180.48,180.4,30.95594774]
[1734843392749,0.10381872,180.48,180.4,0.73291382]
[1734843393982,0.10381872,180.48,180.39,0.73313146]
[1734843393983,1.14269647,180.48,180.39,0.73313146]
[1734843394283,0.10700267,180.41,180.39,0.73313146]
[1734843394453,0.10700267,180.41,180.36,0.73337618]
[1734843394961,0.10700267,180.41,180.36,30.9564101]
[1734843395358,0.10700267,180.41,180.37,30.22303392]
[1734843395658,0.10700267,180.41,180.38,30.95597503]
[1734843397578,0.10700267,180.41,180.38,0.73294111]
[1734843398764,0.10700267,180.41,180.39,0.73337662]
[1734843398961,0.10700267,180.41,180.37,18.59752834]
[1734843399288,0.10700267,180.41,180.38,0.73316675]
[1734843400170,0.10700267,180.41,180.39,0.73342217]
[1734843400355,0.10700267,180.41,180.36,0.73333984]
[1734843401485,0.10700267,180.41,180.37,18.59752834]
[1734843401666,0.10700267,180.41,180.38,0.73305881]
[1734843403968,0.10700267,180.41,180.36,0.73339352]
[1734843406176,0.10700267,180.41,180.36,19.33092186]
[1734843406385,0.10700267,180.41,180.38,18.59752834]
[1734843406682,0.10700267,180.41,180.39,19.33045257]
[1734843406890,0.10700267,180.41,180.39,0.73292423]
[1734843408481,0.10700267,180.41,180.39,19.33045257]
[1734843409180,0.10700267,180.41,180.39,0.73292423]
[1734843409876,0.10700267,180.41,180.39,19.33045257]
[1734843410583,0.10700267,180.41,180.39,0.73292423]
[1734843411677,0.10700267,180.41,180.4,0.73320096]
[1734843412174,0.10700267,180.41,180.37,0.73329538]
[1734843412678,1.6586,180.4,180.31,0.73331503]
[1734843413084,2.69798409,180.4,180.31,0.73331503]
[1734843413785,2.69798409,180.4,180.29,0.73420195]
[1734843414375,0.11572455,180.3,180.29,0.73420195]
[1734843415361,0.11572455,180.3,180.29,19.33173029]
[1734843418865,0.11572455,180.3,180.29,43.10861429]
[1734843419984,0.11572455,180.3,180.29,43.23410429]
[1734843421489,1.07e-06,180.31,180.3,37.768074]
[1734843421692,1.07e-06,180.31,180.3,56.36560234]
[1734843421992,1.07e-06,180.31,180.3,57.09877322]
[1734843427888,5.934e-05,180.35,180.34,20.0]
[1734843428198,7.877e-05,180.39,180.38,0.12549]
[1734843428492,7.877e-05,180.39,180.38,19.45524112]
[1734843428999,8.1951,180.5,180.44,18.59752834]
[1734843429295,8.1951,180.5,180.45,0.73220832]
[1734843429880,1.6586,180.5,180.45,0.73220832]
[1734843430081,1.6586,180.53,180.46,23.776884]
[1734843430286,6.5365,180.56,180.5,18.59752834]
[1734843430472,1.6586,180.57,180.51,19.32902114]
[1734843431297,1.6586,180.57,180.52,18.59752834]
[1734843431480,1.6586,180.57,180.53,0.73121523]
[1734843431689,8.1951,180.61,180.53,19.32874357]
[1734843432402,8.1951,180.61,180.54,18.59752834]
[1734843432579,8.1951,180.61,180.55,0.73119478]
[1734843432981,8.1951,180.61,180.55,19.32872312]
[1734843433510,1.6586,180.61,180.55,0.73119478]
[1734843433719,1.6586,180.61,180.54,0.73117856]
[1734843433999,24.427,180.61,180.5,0.73158723]
[1734843434296,0.11280411,180.55,180.5,0.73158723]
[1734843434809,0.11280411,180.55,180.51,0.73172426]
[1734843435918,0.11280411,180.55,180.54,18.59752834]
[1734843436592,0.11280411,180.55,180.53,23.776884]
[1734843436790,0.11280411,180.55,180.54,0.73116824]
[1734843437786,0.11280411,180.55,180.53,0.73128471]
[1734843438188,0.11280411,180.55,180.53,19.32881305]
[1734843438375,0.11280411,180.55,180.54,18.59752834]
[1734843438579,0.11280411,180.55,180.54,42.37441234]
[1734843438801,0.11280411,180.55,180.54,43.10527709]
[1734843440306,0.11280411,180.55,180.54,0.73086475]
[1734843440476,0.11280411,180.55,180.53,0.73130436]
[1734843441299,0.11280411,180.55,180.53,19.3288327]
[1734843441505,0.11280411,180.55,180.54,18.59752834]
[1734843441685,0.11280411,180.55,180.54,19.32860733]
[1734843441882,0.11280411,180.55,180.54,0.73107899]
[1734843442197,0.11280411,180.55,180.49,0.73156214]
[1734843443085,0.11280411,180.55,180.5,19.32935365]
[1734843443285,0.11280411,180.55,180.52,18.59752834]
[1734843443502,0.11280411,180.55,180.53,0.73114498]
[1734843444609,0.11280411,180.55,180.54,0.73155258]
[1734843444809,0.11280411,180.55,180.5,0.73153766]
[1734843445892,0.11280411,180.55,180.46,18.59752834]
[1734843445893,0.11280411,180.55,180.51,0.73185941]
[1734843446094,0.11280411,180.55,180.47,19.329353]
[1734843446297,0.11280411,180.55,180.48,18.59752834]
[1734843446500,0.11280411,180.55,180.49,0.73161612]
[1734843447509,0.11280411,180.55,180.46,0.73215719]
[1734843447510,1.5779,180.54,180.46,0.73215719]
[1734843447705,1.5779,180.54,180.42,0.732354]
[1734843447904,1.03863983,180.53,180.42,0.732354]
[1734843448404,5.38611964,180.54,180.42,0.732354]
[1734843448604,5.38611964,180.54,180.43,0.73252644]
[1734843449691,5.38611964,180.54,180.44,0.73264085]
[1734843449914,5.38611964,180.54,180.4,0.73264395]
[1734843450609,22.77,180.51,180.4,0.73264395]
[1734843450914,1.03888993,180.5,180.4,0.73264395]
[1734843451121,1.03888993,180.5,180.41,0.73288234]
[1734843451503,22.77,180.51,180.41,0.73288234]
[1734843451710,1.03888418,180.5,180.41,0.73288234]
[1734843451907,22.77,180.51,180.41,0.73288234]
[1734843452102,22.77,180.51,180.42,0.73286807]
[1734843452304,1.5779,180.54,180.42,30.9482553]
[1734843452509,1.5779,180.54,180.44,30.21538723]
[1734843452709,1.5779,180.54,180.45,0.73213475]
[1734843454406,0.11045693,180.46,180.45,0.73213475]
[1734843455819,0.11045693,180.46,180.45,85.06528321]
[1734843456210,5.693e-05,180.46,180.45,85.06528321]
[1734843456599,4.4e-05,180.47,180.46,39.352274]
[1734843456800,4.4e-05,180.47,180.46,69.56766123]
[1734843457322,4.4e-05,180.47,180.46,99.56766123]
[1734843459025,4.4e-05,180.47,180.46,83.99227123]
[1734843459204,4.4e-05,180.47,180.46,54.72409314]
[1734843459806,4.4e-05,180.47,180.46,54.84958314]
[1734843459997,4.4e-05,180.47,180.46,68.70298314]
[1734843460206,4.598e-05,180.48,180.47,0.12549]
[1734843460448,4.598e-05,180.48,180.47,30.34087723]
[1734843460929,4.598e-05,180.48,180.47,54.11776123]
[1734843463217,4.598e-05,180.48,180.47,70.75776123]
[1734843463416,0.11121385,180.5,180.49,0.12549]
[1734843463417,9.72e-06,180.5,180.49,0.12549]
[1734843463617,9.72e-06,180.5,180.49,54.84875156]
[1734843466709,7.947,180.63,180.5,67.96816123]
[1734843466710,3.65e-06,180.51,180.5,67.96816123]
[1734843466912,3.65e-06,180.51,180.5,54.84867636]
[1734843467713,3.65e-06,180.51,180.5,0.73091513]
[1734843470842,3.65e-06,180.51,180.47,0.73169314]
[1734843471011,3.65e-06,180.51,180.43,0.73235569]
[1734843471551,3.65e-06,180.51,180.41,30.21538723]
[1734843471552,21.6075,180.5,180.41,0.73249961]
[1734843471831,1.03898152,180.49,180.37,0.73306698]
[1734843472036,20.0,180.48,180.37,0.73306698]
[1734843472630,21.03903014,180.48,180.38,0.73316422]
[1734843473355,20.0,180.48,180.38,0.73316422]
[1734843473633,1.6075,180.5,180.39,53.99227123]
[1734843473806,1.6075,180.5,180.4,0.73267189]
[1734843474209,1.6075,180.5,180.4,30.94805912]
[1734843474410,0.10865989,180.41,180.4,54.72494312]
[1734843474607,0.10865989,180.41,180.4,24.50955589]
[1734843474810,0.10865989,180.41,180.4,0.73267189]
[1734843475010,0.10865989,180.41,180.39,0.73303189]
[1734843476018,0.10865989,180.41,180.4,30.94842535]
[1734843476935,0.10865989,180.41,180.4,54.72530935]
[1734843477323,0.10865989,180.41,180.4,54.85079935]
[1734843478531,0.10865989,180.41,180.4,54.72530935]
[1734843479428,0.10865989,180.41,180.4,0.73303812]
[1734843479635,0.10865989,180.41,180.37,0.73288565]
[1734843480731,0.10865989,180.41,180.34,0.73351673]
[1734843481241,1.5495,180.4,180.34,0.73351673]
[1734843481619,1.03940351,180.39,180.27,0.73391096]
[1734843482317,1.03940351,180.39,180.26,30.21538723]
[1734843482520,1.03940351,180.39,180.2,0.73439862]
[1734843482521,1.03940351,180.39,180.27,30.94985405]
[1734843483217,2.7719,180.38,180.27,0.73446682]
[1734843483413,1.03972506,180.37,180.27,0.73446682]
[1734843483641,21.03972506,180.37,180.27,0.73446682]
[1734843484057,21.03972506,180.37,180.21,0.73451569]
[1734843484058,20.0,180.33,180.21,0.73451569]
[1734843484225,1.5495,180.32,180.21,30.94990292]
[1734843484425,2.58940301,180.32,180.21,0.73451569]
[1734843485432,2.773,180.31,180.21,0.73451569]
[1734843485631,1.04008552,180.3,180.21,0.73451569]
[1734843488648,1.5495,180.32,180.23,30.21538723]
[1734843488851,22.58940498,180.32,180.24,0.7349139]
[1734843489236,25.36230498,180.32,180.19,31.62758164]
[1734843489549,25.36230498,180.32,180.2,30.21538723]
[1734843489752,25.36230498,180.32,180.22,30.21538723]
[1734843489968,24.3224,180.32,180.23,30.95042865]
[1734843490352,24.3224,180.32,180.23,0.73504142]
[1734843491155,24.3224,180.32,180.24,30.21538723]
[1734843491343,4.3224,180.32,180.24,0.73492788]
[1734843491553,1.03991197,180.31,180.22,30.21538723]
[1734843491741,1.03991197,180.31,180.23,0.73511835]
[1734843493336,1.03996868,180.31,180.23,0.73511835]
[1734843493536,2.7731,180.3,180.2,30.21538723]
[1734843493746,1.0401717,180.29,180.2,30.21538723]
[1734843494448,0.12193145,180.21,180.2,30.21538723]
[1734843496561,0.12193145,180.21,180.19,31.62759261]
[1734843497560,0.12193145,180.21,180.2,30.21538723]
[1734843498537,0.12193145,180.21,180.2,54.11776123]
[1734843498860,0.12193145,180.21,180.2,53.99227123]
[1734843499054,0.12193145,180.21,180.2,30.21538723]
[1734843501966,0.12193145,180.21,180.19,31.62759261]
[1734843502462,0.12193145,180.21,180.2,30.21538723]
[1734843503251,0.12193145,180.21,180.19,31.62759261]
[1734843503450,0.12193145,180.21,180.2,30.21538723]
[1734843503953,0.12193145,180.21,180.19,1.41220538]
[1734843504457,0.12193145,180.21,180.19,20.04986317]
[1734843505435,0.12193145,180.21,180.19,1.41220538]
[1734843507367,0.12193145,180.21,180.19,20.04986317]
[1734843509375,0.12193145,180.21,180.19,1.41220538]
[1734843510347,0.12193145,180.21,180.2,0.73575058]
[1734843511567,0.12193145,180.21,180.19,1.41263579]
[1734843511775,0.12193145,180.21,180.19,0.6771317]
[1734843511959,0.12193145,180.21,180.2,0.73562425]
[1734843513660,0.12193145,180.21,180.19,0.6771317]
[1734843513845,0.12193145,180.21,180.19,1.41280849]
[1734843514069,0.12193145,180.21,180.2,18.63765779]
[1734843514353,0.2383142,180.21,180.2,18.63765779]
[1734843514556,0.2383142,180.21,180.19,1.41280849]
[1734843514788,0.11638275,180.21,180.19,1.41280849]
[1734843516874,0.11638275,180.21,180.2,0.73543112]
[1734843517374,0.11638275,180.21,180.19,0.6771317]
[1734843517578,0.11638275,180.21,180.2,0.73566446]
[1734843519180,0.11638275,180.21,180.2,0.73563092]
[1734843522570,0.11638275,180.21,180.2,19.37328871]
[1734843522866,0.11638275,180.21,180.2,0.73563092]
[1734843523252,0.11638275,180.21,180.19,0.6771317]
[1734843523456,0.11638275,180.21,180.2,0.73550695]
[1734843528600,0.11638275,180.21,180.19,1.41257056]
[1734843529388,0.11638275,180.21,180.19,0.91257056]
[1734843530477,0.11638275,180.21,180.19,0.1771317]
[1734843532787,1.561,180.2,180.19,0.1771317]
[1734843533289,1.561,180.2,180.11,18.63765779]
[1734843533481,1.04058991,180.19,180.05,19.37394156]
[1734843533674,20.0,180.15,180.04,8.50493625]
[1734843533886,1.561,180.13,180.04,8.50493625]
[1734843534088,1.04104356,180.12,180.04,8.50493625]
[1734843534388,0.11152533,180.05,180.02,7.74163915]
[1734843535205,0.11152533,180.05,180.03,18.63765779]
[1734843535378,0.11152533,180.05,180.04,18.63765779]
[1734843535570,0.11152533,180.05,180.04,44.17673179]
[1734843537586,0.11152533,180.05,180.04,42.54003179]
[1734843539494,0.11152533,180.05,180.04,44.17673179]
[1734843540190,0.11152533,180.05,180.04,25.539074]
[1734843540374,0.11152533,180.05,180.04,44.17673179]
[1734843540572,1.561,180.22,180.08,20.12549]
[1734843540790,1.561,180.22,180.11,62.54003179]
[1734843541094,1.561,180.27,180.12,45.539074]
[1734843541282,9.2427,180.29,180.13,42.54003179]
[1734843541479,9.2427,180.29,180.13,23.776884]
[1734843541480,2.7737,180.26,180.13,23.776884]
[1734843541683,1.04025013,180.25,180.13,23.776884]
[1734843541870,1.04034241,180.28,180.13,23.776884]
[1734843542195,1.04034241,180.28,180.13,30.30425389]
[1734843542380,1.04034241,180.28,180.13,54.08113789]
[1734843542584,2.7736,180.28,180.13,54.20662789]
[1734843542893,3.81374181,180.28,180.13,54.20662789]
[1734843543198,3.81374181,180.28,180.13,30.30425389]
[1734843543571,2.7739,180.26,180.13,54.08113789]
[1734843543771,2.7742,180.24,180.12,30.30425389]
[1734843543970,1.04048955,180.23,180.11,6.0866]
[1734843544184,1.04048955,180.23,180.12,30.30425389]
[1734843544598,1.561,180.22,180.11,36.39085389]
[1734843545297,1.561,180.22,180.12,54.08113789]
[1734843545486,21.561,180.22,180.07,1.6367]
[1734843545677,26.4693,180.19,180.07,30.30425389]
[1734843546004,26.4693,180.19,180.08,30.30425389]
[1734843546301,26.4693,180.19,180.09,30.30425389]
[1734843546483,8.0303,180.22,180.12,30.30425389]
[1734843546679,8.0303,180.22,180.13,30.30425389]
[1734843547197,8.0303,180.22,180.13,54.08113789]
[1734843547983,8.0303,180.22,180.07,14.00889]
[1734843548180,3.81505677,180.21,180.07,23.776884]
[1734843548379,3.81505677,180.21,180.1,30.30425389]
[1734843549603,8.0303,180.22,180.13,54.08113789]
[1734843549892,8.0303,180.26,180.13,54.20662789]
[1734843552172,6.535e-05,180.14,180.13,60.29322789]
[1734843554404,0.11583153,180.14,180.13,30.30425389]
[1734843554612,0.11583153,180.14,180.08,13.8826]
[1734843554786,0.11576618,180.14,180.13,30.30425389]
[1734843555677,0.11576618,180.14,180.1,0.12549]
[1734843555992,0.11576618,180.14,180.13,30.30425389]
[1734843556180,0.11576618,180.14,180.13,54.08113789]
[1734843556378,0.11576618,180.14,180.13,30.30425389]
[1734843558044,0.11576618,180.14,180.12,30.30425389]
[1734843559208,0.11576618,180.14,180.13,30.30425389]
[1734843559709,0.11576618,180.14,180.09,54.08113789]
[1734843559710,0.11576618,180.14,180.08,23.776884]
[1734843560005,0.11576618,180.14,180.12,30.30425389]
[1734843560187,0.11576618,180.14,180.13,30.30425389]
[1734843560510,0.11576618,180.14,180.13,54.08113789]
[1734843561600,0.11576618,180.14,180.12,30.30425389]
[1734843561810,0.11576618,180.14,180.1,30.30425389]
[1734843562024,0.11576618,180.14,180.11,30.30425389]
[1734843564412,0.11576618,180.14,180.13,30.30425389]
[1734843564632,0.11576618,180.14,180.13,54.20662789]
[1734843564919,0.11576618,180.14,180.13,54.08113789]
[1734843565599,0.11576618,180.14,180.12,30.30425389]
[1734843565745,0.11576618,180.14,180.11,30.30425389]
[1734843566249,0.11576618,180.14,180.12,18.65272046]
[1734843567838,0.11576618,180.14,180.06,20.0]
[1734843568039,0.11576618,180.14,180.08,18.65272046]
[1734843568712,0.11576618,180.14,180.09,18.65272046]
[1734843569350,0.11576618,180.14,180.11,18.65272046]
[1734843569560,0.11576618,180.14,180.1,18.65272046]
[1734843569842,0.11576618,180.14,180.09,18.65272046]
[1734843570646,0.11576618,180.14,180.1,18.65272046]
[1734843571056,0.11576618,180.14,180.11,18.65272046]
[1734843571954,0.11576618,180.14,180.05,0.12549]
[1734843572157,0.11576618,180.14,180.09,18.65272046]
[1734843573253,0.11576618,180.14,180.11,18.65272046]
[1734843574276,0.11576618,180.14,180.12,18.65272046]
[1734843574453,0.11993281,180.12,180.09,18.65272046]
[1734843574971,0.11993281,180.12,180.11,18.65272046]
[1734843576278,0.11993281,180.12,180.09,18.65272046]
[1734843576974,0.11993281,180.12,180.08,18.65272046]
[1734843577188,0.11993281,180.12,180.02,1.6351]
[1734843577391,0.11993281,180.12,180.07,18.65272046]
[1734843578888,0.11993281,180.12,180.1,18.65272046]
[1734843579187,0.11993281,180.12,180.03,23.902374]
[1734843579188,0.11993281,180.12,180.11,18.65272046]
[1734843580651,0.10089284,180.19,180.15,23.902374]
[1734843580869,0.10089284,180.19,180.11,7.31369603]
[1734843581069,0.10089284,180.19,180.03,7.98]
[1734843581070,1.14129936,180.19,180.03,7.98]
[1734843581262,2.775,180.18,180.08,18.65272046]
[1734843581477,1.04086032,180.17,180.08,18.65272046]
[1734843581687,2.775,180.18,180.1,18.65272046]
[1734843581887,3.81573356,180.18,180.1,18.65272046]
[1734843582094,2.775,180.18,180.1,18.65272046]
[1734843582274,1.04070525,180.17,180.08,18.65272046]
[1734843582759,2.7753,180.16,180.08,18.65272046]
[1734843583060,2.7753,180.16,180.05,18.65272046]
[1734843585987,1.0408514,180.15,180.05,18.65272046]
[1734843586188,3.81621682,180.16,180.05,18.65272046]
[1734843589066,20.0,180.18,180.06,23.776884]
[1734843589381,21.04075973,180.18,180.06,23.776884]
[1734843589578,21.04075973,180.18,180.05,18.65272046]
[1734843590602,1.6656,180.17,180.03,18.65272046]
[1734843590882,1.04101196,180.16,180.03,18.65272046]
[1734843591497,2.7754,180.15,180.03,18.65272046]
[1734843591671,1.04101447,180.14,180.03,18.65272046]
[1734843592489,6.1394,180.13,180.02,62.42960446]
[1734843592893,6.1394,180.13,180.03,18.65272046]
[1734843594073,5.36089664,180.12,180.01,0.6771317]
[1734843594266,0.10991991,180.04,180.01,0.6771317]
[1734843594994,0.10991991,180.04,180.01,19.32985216]
[1734843595198,0.10991991,180.04,180.02,18.65272046]
[1734843595366,0.10991991,180.04,180.01,19.32985216]
[1734843595565,0.10991991,180.04,180.02,23.776884]
[1734843598192,0.10991991,180.04,180.01,0.6771317]
[1734843598382,0.10991991,180.04,180.02,42.42960446]
[1734843599270,1.65391991,180.04,180.01,0.6771317]
[1734843599670,7.77331991,180.04,180.01,0.6771317]
[1734843600306,1.65391991,180.04,180.01,0.6771317]
[1734843600983,0.10991991,180.04,180.01,0.6771317]
[1734843601871,0.10991991,180.04,180.02,23.776884]
[1734843602193,0.10991991,180.04,180.01,0.6771317]
[1734843602885,0.10991991,180.04,180.02,23.776884]
[1734843603069,0.10991991,180.04,180.03,42.55509446]
[1734843603480,0.10991991,180.04,180.03,48.71534824]
[1734843603696,0.11831871,180.07,180.06,20.12549]
[1734843603898,0.11831871,180.07,180.06,62.55509446]
[1734843604288,1.0406237,180.27,180.07,29.981974]
[1734843604497,0.11385032,180.13,180.1,0.12549]
[1734843604690,0.00104768,180.13,180.12,42.55509446]
[1734843604888,0.00104768,180.13,180.12,23.776884]
[1734843605882,0.00104768,180.13,180.11,18.65272046]
[1734843605883,0.00104768,180.13,180.11,23.776884]
[1734843606400,0.00104768,180.13,180.1,20.0]
[1734843606986,0.00104768,180.13,180.11,23.776884]
[1734843607302,0.00104768,180.13,180.09,23.776884]
[1734843607796,0.00104768,180.13,180.09,42.42960446]
[1734843608007,0.00104768,180.13,180.09,18.65272046]
[1734843608203,0.00104768,180.13,180.12,42.42960446]
[1734843608584,0.00104768,180.13,180.1,18.65272046]
[1734843608791,0.00104768,180.13,180.11,23.776884]
[1734843609197,0.00104768,180.13,180.11,18.65272046]
[1734843609395,0.00104768,180.13,180.12,42.55509446]
[1734843609685,0.00104768,180.13,180.12,46.87349446]
[1734843610095,0.00104768,180.13,180.12,28.220774]
[1734843610299,0.00104768,180.13,180.12,46.87349446]
[1734843611702,0.00104768,180.13,180.1,22.23918929]
[1734843612011,0.00104768,180.13,180.1,40.89190975]
[1734843612385,0.00104768,180.13,180.12,38.65272046]
[1734843612780,0.00104768,180.13,180.11,18.65272046]
[1734843613212,0.00104768,180.13,180.1,18.65272046]
[1734843613399,0.00104768,180.13,180.07,18.65272046]
[1734843613593,0.00104768,180.13,180.08,18.65272046]
[1734843613794,0.00104768,180.13,180.07,18.65272046]
[1734843614021,0.00104768,180.13,180.04,18.65272046]
[1734843614382,0.11502802,180.08,180.05,18.65272046]
[1734843614702,0.11502802,180.08,180.07,18.65272046]
[1734843615817,0.11502802,180.08,180.07,42.42960446]
[1734843616730,0.11502802,180.08,180.07,42.55509446]
[1734843617321,0.11502802,180.08,180.07,23.776884]
[1734843618225,0.11502802,180.08,180.07,42.42960446]
[1734843618429,0.11502802,180.08,180.07,23.776884]
[1734843618930,0.11502802,180.08,180.07,42.42960446]
[1734843619621,0.11502802,180.08,180.04,18.65272046]
[1734843619985,0.11502802,180.08,180.03,18.65272046]
[1734843620190,0.11502802,180.08,180.01,0.6771317]
[1734843621726,2.89152802,180.08,180.01,0.6771317]
[1734843622016,1.04141952,180.07,180.01,0.6771317]
[1734843623428,2.89152802,180.08,180.01,0.6771317]
[1734843624025,0.11502802,180.08,180.02,23.776884]
[1734843624191,0.11502802,180.08,180.01,0.6771317]
[1734843624534,0.11502802,180.08,180.03,18.65272046]
[1734843624693,0.11502802,180.08,180.05,18.65272046]
[1734843624887,0.11502802,180.08,180.07,18.65272046]
[1734843625118,0.11502802,180.08,180.07,42.42960446]
[1734843625325,0.11502802,180.08,180.07,23.776884]
[1734843625513,0.11502802,180.08,180.06,42.42960446]
[1734843626034,0.11502802,180.08,180.06,54.10220747]
[1734843626320,0.11502802,180.08,180.07,30.32532347]
[1734843626525,0.11502802,180.08,180.07,54.10220747]
[1734843628628,0.11502802,180.08,180.05,30.32532347]
[1734843628793,0.11502802,180.08,180.04,30.32532347]
[1734843629209,0.11502802,180.08,180.03,30.32532347]
[1734843629527,0.11502802,180.08,180.01,31.00245517]
[1734843629700,0.11502802,180.08,180.01,0.6771317]
[1734843630092,0.11502802,180.08,180.01,31.00245517]
[1734843630511,0.11502802,180.08,180.01,0.1771317]
[1734843630717,7.6782,180.07,180.01,0.1771317]
[1734843630924,1.0414957,180.06,180.01,0.1771317]
[1734843634319,0.11657717,180.02,180.01,0.1771317]
[1734843637926,0.11657717,180.02,180.01,60.56017227]